[Event "Titled Tuesday Blitz September 27 Late 2022"]
[White "Ibarra Jerez, Jose Carlos"]
[Black "Vlassov, Nikolai"]
[WhiteFideId "2226332"]
[BlackFideId "4103360"]
[WhiteElo "2627"]
[BlackElo "2324"]
[Result "1/2-1/2"]
[Round "08"]
[TimeControl "180+1"]
[Date "2022.09.27"]
[WhiteClock "0:00:09"]
[BlackClock "0:00:07"]

1. Nf3 {[%clk 0:03:00]}  c5 {[%clk 0:02:58]} 2. g3 {[%clk 0:02:59]}  Nc6 {[%clk 0:02:58]} 3. Bg2 {[%clk 0:03:00]}  e5 {[%clk 0:02:55]} 4. O-O {[%clk 0:03:00]}  f5 {[%clk 0:02:53]} 5. c3 {[%clk 0:02:54]}  Nf6 {[%clk 0:02:49]} 6. d4 {[%clk 0:02:54]}  e4 {[%clk 0:02:44]} 7. Nh4 {[%clk 0:02:49]}  d5 {[%clk 0:02:42]} 8. f3 {[%clk 0:02:49]}  Qb6 {[%clk 0:02:32]} 9. dxc5 {[%clk 0:02:34]}  Bxc5+ {[%clk 0:02:31]} 10. Kh1 {[%clk 0:02:35]}  Be6 {[%clk 0:02:28]} 11. fxe4 {[%clk 0:02:33]}  fxe4 {[%clk 0:02:26]} 12. b4 {[%clk 0:02:33]}  Be7 {[%clk 0:01:58]} 13. Nf5 {[%clk 0:02:30]}  Bxf5 {[%clk 0:01:54]} 14. Rxf5 {[%clk 0:02:31]}  O-O-O {[%clk 0:01:46]} 15. Bf4 {[%clk 0:02:24]}  Ng4 {[%clk 0:01:42]} 16. Bh3 {[%clk 0:01:50]}  Nf2+ {[%clk 0:01:29]} 17. Kg2 {[%clk 0:01:50]}  Nxh3 {[%clk 0:01:25]} 18. Kxh3 {[%clk 0:01:46]}  d4 {[%clk 0:01:16]} 19. Qb3 {[%clk 0:01:42]}  Rd7 {[%clk 0:00:56]} 20. Qe6 {[%clk 0:01:18]}  Nd8 {[%clk 0:00:31]} 21. Qxe4 {[%clk 0:01:16]}  Qe6 {[%clk 0:00:20]} 22. Qe5 {[%clk 0:01:05]}  Qxe5 {[%clk 0:00:16]} 23. Bxe5 {[%clk 0:01:06]}  Nc6 {[%clk 0:00:13]} 24. Bxg7 {[%clk 0:00:53]}  Re8 {[%clk 0:00:13]} 25. Na3 {[%clk 0:00:42]}  dxc3 {[%clk 0:00:11]} 26. Bxc3 {[%clk 0:00:40]}  Bxb4 {[%clk 0:00:11]} 27. Bxb4 {[%clk 0:00:38]}  Nxb4 {[%clk 0:00:12]} 28. Rc1+ {[%clk 0:00:33]}  Kb8 {[%clk 0:00:12]} 29. Rb5 {[%clk 0:00:28]}  Nd5 {[%clk 0:00:07]} 30. Rcc5 {[%clk 0:00:20]}  Nf6 {[%clk 0:00:04]} 31. Re5 {[%clk 0:00:19]}  Rxe5 {[%clk 0:00:04]} 32. Rxe5 {[%clk 0:00:20]}  Rd2 {[%clk 0:00:05]} 33. Nb5 {[%clk 0:00:20]}  a6 {[%clk 0:00:04]} 34. Nc3 {[%clk 0:00:18]}  Rc2 {[%clk 0:00:04]} 35. Rf5 {[%clk 0:00:13]}  Rxc3 {[%clk 0:00:03]} 36. Rxf6 {[%clk 0:00:14]}  Rc2 {[%clk 0:00:04]} 37. a4 {[%clk 0:00:12]}  Rxe2 {[%clk 0:00:04]} 38. Rf4 {[%clk 0:00:13]}  Re7 {[%clk 0:00:03]} 39. g4 {[%clk 0:00:13]}  Kc7 {[%clk 0:00:04]} 40. g5 {[%clk 0:00:11]}  Kb6 {[%clk 0:00:04]} 41. Kg4 {[%clk 0:00:11]}  Ka5 {[%clk 0:00:05]} 42. h4 {[%clk 0:00:12]}  b5 {[%clk 0:00:05]} 43. axb5 {[%clk 0:00:12]}  axb5 {[%clk 0:00:05]} 44. h5 {[%clk 0:00:13]}  b4 {[%clk 0:00:06]} 45. Rf8 {[%clk 0:00:13]}  b3 {[%clk 0:00:06]} 46. Rb8 {[%clk 0:00:11]}  Ka4 {[%clk 0:00:06]} 47. Kf5 {[%clk 0:00:11]}  Ka3 {[%clk 0:00:06]} 48. Kf6 {[%clk 0:00:12]}  Rd7 {[%clk 0:00:06]} 49. Ra8+ {[%clk 0:00:10]}  Kb4 {[%clk 0:00:05]} 50. Rb8+ {[%clk 0:00:10]}  Kc3 {[%clk 0:00:06]} 51. Rc8+ {[%clk 0:00:10]}  Kd2 {[%clk 0:00:06]} 52. Rb8 {[%clk 0:00:09]}  Kc2 {[%clk 0:00:06]} 53. g6 {[%clk 0:00:07]}  hxg6 {[%clk 0:00:06]} 54. hxg6 {[%clk 0:00:08]}  b2 {[%clk 0:00:07]} 55. g7 {[%clk 0:00:08]}  Rxg7 {[%clk 0:00:07]} 56. Kxg7 {[%clk 0:00:09]}  b1=Q {[%clk 0:00:07]} 57. Rxb1 {[%clk 0:00:09]}  Kxb1 {[%clk 0:00:07]} 1/2-1/2


[Site "https://www.chess.com"]

[Event "Titled Tuesday Blitz September 27 Late 2022"]
[White "Javakhadze, Zurab"]
[Black "Nogerbek, Kazybek"]
[WhiteFideId "13603647"]
[BlackFideId "13710427"]
[WhiteElo "2381"]
[BlackElo "2458"]
[Result "0-1"]
[Round "08"]
[TimeControl "180+1"]
[Date "2022.09.27"]
[WhiteClock "0:00:05"]
[BlackClock "0:00:43"]

1. d4 {[%clk 0:03:00]}  Nf6 {[%clk 0:03:00]} 2. c4 {[%clk 0:03:01]}  e6 {[%clk 0:03:00]} 3. Nf3 {[%clk 0:03:01]}  d5 {[%clk 0:03:00]} 4. Nc3 {[%clk 0:03:01]}  dxc4 {[%clk 0:03:01]} 5. e3 {[%clk 0:02:57]}  a6 {[%clk 0:02:56]} 6. a4 {[%clk 0:02:57]}  c5 {[%clk 0:02:55]} 7. Bxc4 {[%clk 0:02:57]}  Nc6 {[%clk 0:02:56]} 8. O-O {[%clk 0:02:57]}  cxd4 {[%clk 0:02:56]} 9. exd4 {[%clk 0:02:57]}  Be7 {[%clk 0:02:56]} 10. d5 {[%clk 0:02:53]}  exd5 {[%clk 0:02:50]} 11. Nxd5 {[%clk 0:02:54]}  O-O {[%clk 0:02:51]} 12. Nxe7+ {[%clk 0:02:53]}  Qxe7 {[%clk 0:02:51]} 13. Bg5 {[%clk 0:02:38]}  Bg4 {[%clk 0:02:50]} 14. Qe2 {[%clk 0:02:15]}  Qxe2 {[%clk 0:02:30]} 15. Bxe2 {[%clk 0:02:15]}  Rfe8 {[%clk 0:02:31]} 16. Bd1 {[%clk 0:01:58]}  Ne4 {[%clk 0:02:27]} 17. Be3 {[%clk 0:01:56]}  Nb4 {[%clk 0:02:27]} 18. Nd4 {[%clk 0:01:53]}  Bxd1 {[%clk 0:02:26]} 19. Rfxd1 {[%clk 0:01:52]}  Rac8 {[%clk 0:02:21]} 20. Rac1 {[%clk 0:01:49]}  h6 {[%clk 0:02:19]} 21. g4 {[%clk 0:01:35]}  Kh7 {[%clk 0:01:42]} 22. Nf5 {[%clk 0:01:33]}  Rxc1 {[%clk 0:01:40]} 23. Rxc1 {[%clk 0:01:32]}  Nd5 {[%clk 0:01:38]} 24. Rd1 {[%clk 0:01:12]}  Nef6 {[%clk 0:01:35]} 25. Bc1 {[%clk 0:00:47]}  Nxg4 {[%clk 0:01:21]} 26. Rxd5 {[%clk 0:00:47]}  Re1+ {[%clk 0:01:21]} 27. Kg2 {[%clk 0:00:47]}  Rxc1 {[%clk 0:01:22]} 28. Rd7 {[%clk 0:00:44]}  Rc2 {[%clk 0:01:21]} 29. Rxf7 {[%clk 0:00:45]}  Kg6 {[%clk 0:01:21]} 30. Nd6 {[%clk 0:00:41]}  Rd2 {[%clk 0:01:14]} 31. Rf4 {[%clk 0:00:20]}  Nxf2 {[%clk 0:01:12]} 32. Nc4 {[%clk 0:00:20]}  Nd3+ {[%clk 0:01:04]} 33. Nxd2 {[%clk 0:00:20]}  Nxf4+ {[%clk 0:01:05]} 34. Kf3 {[%clk 0:00:21]}  Kf5 {[%clk 0:01:05]} 35. Nc4 {[%clk 0:00:20]}  Nd3 {[%clk 0:00:56]} 36. Nd6+ {[%clk 0:00:21]}  Ke5 {[%clk 0:00:54]} 37. Nxb7 {[%clk 0:00:21]}  Nxb2 {[%clk 0:00:54]} 38. Nc5 {[%clk 0:00:22]}  a5 {[%clk 0:00:54]} 39. Nb3 {[%clk 0:00:20]}  Nc4 {[%clk 0:00:54]} 40. h4 {[%clk 0:00:17]}  h5 {[%clk 0:00:53]} 41. Nc5 {[%clk 0:00:11]}  Kf5 {[%clk 0:00:52]} 42. Nb3 {[%clk 0:00:11]}  g6 {[%clk 0:00:52]} 43. Nd4+ {[%clk 0:00:11]}  Kf6 {[%clk 0:00:52]} 44. Kf4 {[%clk 0:00:11]}  Nb2 {[%clk 0:00:44]} 45. Nc6 {[%clk 0:00:11]}  Nxa4 {[%clk 0:00:41]} 46. Nxa5 {[%clk 0:00:11]}  Nc5 {[%clk 0:00:42]} 47. Nc4 {[%clk 0:00:11]}  Ne6+ {[%clk 0:00:42]} 48. Kf3 {[%clk 0:00:08]}  Nd4+ {[%clk 0:00:42]} 49. Kf4 {[%clk 0:00:08]}  Nf5 {[%clk 0:00:42]} 50. Nb6 {[%clk 0:00:02]}  Nxh4 {[%clk 0:00:42]} 51. Nd5+ {[%clk 0:00:03]}  Kg7 {[%clk 0:00:43]} 52. Ne3 {[%clk 0:00:04]}  Kh6 {[%clk 0:00:42]} 53. Kg3 {[%clk 0:00:04]}  Nf5+ {[%clk 0:00:42]} 54. Nxf5+ {[%clk 0:00:04]}  gxf5 {[%clk 0:00:43]} 55. Kf4 {[%clk 0:00:05]} 0-1


[Site "https://www.chess.com"]

[Event "Titled Tuesday Blitz September 27 Late 2022"]
[White "Kalogeris, Ioannis"]
[Black "Sernecki, Franciszek"]
[WhiteFideId "4239563"]
[BlackFideId "1169297"]
[WhiteElo "2291"]
[BlackElo "2168"]
[Result "0-1"]
[Round "08"]
[TimeControl "180+1"]
[Date "2022.09.28"]
[WhiteClock "0:00:09"]
[BlackClock "0:00:15"]

1. e4 {[%clk 0:03:00]}  e6 {[%clk 0:02:57]} 2. d4 {[%clk 0:02:58]}  d5 {[%clk 0:02:57]} 3. Nc3 {[%clk 0:02:58]}  Bb4 {[%clk 0:02:57]} 4. e5 {[%clk 0:02:57]}  Ne7 {[%clk 0:02:57]} 5. a3 {[%clk 0:02:56]}  Bxc3+ {[%clk 0:02:57]} 6. bxc3 {[%clk 0:02:57]}  c5 {[%clk 0:02:58]} 7. h4 {[%clk 0:02:54]}  h5 {[%clk 0:02:55]} 8. Bg5 {[%clk 0:02:40]}  Qa5 {[%clk 0:02:54]} 9. Qd2 {[%clk 0:02:33]}  Nf5 {[%clk 0:02:48]} 10. Nf3 {[%clk 0:02:14]}  cxd4 {[%clk 0:02:43]} 11. cxd4 {[%clk 0:02:04]}  Qxd2+ {[%clk 0:02:41]} 12. Bxd2 {[%clk 0:02:05]}  b6 {[%clk 0:02:38]} 13. Bb5+ {[%clk 0:02:04]}  Bd7 {[%clk 0:02:38]} 14. Bd3 {[%clk 0:02:04]}  Nc6 {[%clk 0:02:37]} 15. Bc3 {[%clk 0:01:46]}  Ke7 {[%clk 0:02:31]} 16. O-O-O {[%clk 0:01:43]}  Rhc8 {[%clk 0:02:31]} 17. Kd2 {[%clk 0:01:41]}  Na5 {[%clk 0:02:27]} 18. Bb4+ {[%clk 0:01:28]}  Ke8 {[%clk 0:02:25]} 19. Bxa5 {[%clk 0:01:27]}  bxa5 {[%clk 0:02:26]} 20. Rb1 {[%clk 0:01:27]}  Rc7 {[%clk 0:02:23]} 21. Rb2 {[%clk 0:01:20]}  Rac8 {[%clk 0:02:22]} 22. Rhb1 {[%clk 0:01:19]}  Ba4 {[%clk 0:02:22]} 23. Rb7 {[%clk 0:01:14]}  Kd7 {[%clk 0:01:55]} 24. c3 {[%clk 0:00:53]}  Rxb7 {[%clk 0:01:28]} 25. Rxb7+ {[%clk 0:00:54]}  Rc7 {[%clk 0:01:29]} 26. Rxc7+ {[%clk 0:00:43]}  Kxc7 {[%clk 0:01:30]} 27. Bxf5 {[%clk 0:00:41]}  exf5 {[%clk 0:01:31]} 28. Ng5 {[%clk 0:00:42]}  Be8 {[%clk 0:01:29]} 29. Ke3 {[%clk 0:00:38]}  Kd7 {[%clk 0:01:26]} 30. Kf4 {[%clk 0:00:37]}  f6 {[%clk 0:01:21]} 31. exf6 {[%clk 0:00:23]}  gxf6 {[%clk 0:01:22]} 32. Nf3 {[%clk 0:00:22]}  Ke6 {[%clk 0:01:21]} 33. Nd2 {[%clk 0:00:20]}  Ba4 {[%clk 0:01:14]} 34. Nf1 {[%clk 0:00:20]}  Be8 {[%clk 0:01:04]} 35. Ne3 {[%clk 0:00:17]}  Bg6 {[%clk 0:01:04]} 36. f3 {[%clk 0:00:13]}  Bh7 {[%clk 0:01:03]} 37. g3 {[%clk 0:00:14]}  Bg6 {[%clk 0:01:03]} 38. Ng2 {[%clk 0:00:14]}  Be8 {[%clk 0:01:01]} 39. Ke3 {[%clk 0:00:14]}  Kd6 {[%clk 0:00:58]} 40. Kf4 {[%clk 0:00:13]}  Ke6 {[%clk 0:00:58]} 41. Ne3 {[%clk 0:00:13]}  Bg6 {[%clk 0:00:58]} 42. Nd1 {[%clk 0:00:13]}  Be8 {[%clk 0:00:36]} 43. Nf2 {[%clk 0:00:14]}  Bd7 {[%clk 0:00:30]} 44. Ke3 {[%clk 0:00:14]}  Be8 {[%clk 0:00:26]} 45. Nd3 {[%clk 0:00:14]}  Bf7 {[%clk 0:00:22]} 46. Kf4 {[%clk 0:00:13]}  Bg6 {[%clk 0:00:22]} 47. Nc5+ {[%clk 0:00:11]}  Kd6 {[%clk 0:00:22]} 48. a4 {[%clk 0:00:11]}  Bh7 {[%clk 0:00:20]} 49. Nb7+ {[%clk 0:00:11]}  Kc6 {[%clk 0:00:20]} 50. Nxa5+ {[%clk 0:00:11]}  Kd6 {[%clk 0:00:20]} 51. Nb7+ {[%clk 0:00:11]}  Kc7 {[%clk 0:00:20]} 52. Nc5 {[%clk 0:00:11]}  Kd6 {[%clk 0:00:20]} 53. a5 {[%clk 0:00:11]}  Bg6 {[%clk 0:00:19]} 54. Nd3 {[%clk 0:00:07]}  Bh7 {[%clk 0:00:18]} 55. Nb4 {[%clk 0:00:07]}  Bg6 {[%clk 0:00:17]} 56. g4 {[%clk 0:00:08]}  fxg4 {[%clk 0:00:17]} 57. fxg4 {[%clk 0:00:09]}  Ke6 {[%clk 0:00:15]} 0-1


[Site "https://www.chess.com"]

[Event "Titled Tuesday Blitz September 27 Late 2022"]
[White "Kavutskiy, Konstantin"]
[Black "Lin, Dachey"]
[WhiteFideId "2026384"]
[BlackFideId "2029650"]
[WhiteElo "2338"]
[BlackElo "2313"]
[Result "0-1"]
[Round "08"]
[TimeControl "180+1"]
[Date "2022.09.28"]
[WhiteClock "0:00:02"]
[BlackClock "0:00:12"]

1. d4 {[%clk 0:03:00]}  g6 {[%clk 0:03:00]} 2. e4 {[%clk 0:03:00]}  Bg7 {[%clk 0:03:01]} 3. c4 {[%clk 0:03:00]}  c6 {[%clk 0:02:59]} 4. Nc3 {[%clk 0:02:59]}  d6 {[%clk 0:02:59]} 5. Nf3 {[%clk 0:02:58]}  Nf6 {[%clk 0:02:59]} 6. Be2 {[%clk 0:02:58]}  O-O {[%clk 0:02:59]} 7. O-O {[%clk 0:02:56]}  a6 {[%clk 0:03:00]} 8. Re1 {[%clk 0:02:55]}  b5 {[%clk 0:03:00]} 9. a3 {[%clk 0:02:53]}  Nbd7 {[%clk 0:02:58]} 10. Be3 {[%clk 0:02:49]}  Bb7 {[%clk 0:02:53]} 11. Qd2 {[%clk 0:02:47]}  Ng4 {[%clk 0:02:46]} 12. Bg5 {[%clk 0:02:46]}  h6 {[%clk 0:02:46]} 13. Bh4 {[%clk 0:02:46]}  Re8 {[%clk 0:02:42]} 14. h3 {[%clk 0:02:43]}  Ngf6 {[%clk 0:02:42]} 15. e5 {[%clk 0:02:38]}  dxe5 {[%clk 0:02:42]} 16. dxe5 {[%clk 0:02:36]}  Nxe5 {[%clk 0:02:42]} 17. Qxd8 {[%clk 0:02:25]}  Nxf3+ {[%clk 0:02:42]} 18. Bxf3 {[%clk 0:02:25]}  Raxd8 {[%clk 0:02:43]} 19. cxb5 {[%clk 0:02:23]}  axb5 {[%clk 0:02:42]} 20. Nxb5 {[%clk 0:02:19]}  Rd7 {[%clk 0:02:28]} 21. Nc3 {[%clk 0:02:07]}  Nd5 {[%clk 0:02:15]} 22. Na4 {[%clk 0:01:59]}  Ba8 {[%clk 0:01:44]} 23. Rad1 {[%clk 0:01:45]}  Ra7 {[%clk 0:01:41]} 24. b3 {[%clk 0:01:32]}  e6 {[%clk 0:01:35]} 25. Bg3 {[%clk 0:01:27]}  Bf8 {[%clk 0:01:32]} 26. Ra1 {[%clk 0:01:07]}  Bb7 {[%clk 0:01:20]} 27. Bd1 {[%clk 0:01:01]}  Rea8 {[%clk 0:01:17]} 28. Bc2 {[%clk 0:00:56]}  c5 {[%clk 0:01:16]} 29. Be4 {[%clk 0:00:51]}  Bc6 {[%clk 0:01:07]} 30. Red1 {[%clk 0:00:32]}  Rb7 {[%clk 0:00:58]} 31. Rac1 {[%clk 0:00:26]}  Rxb3 {[%clk 0:00:40]} 32. Nxc5 {[%clk 0:00:25]}  Rc3 {[%clk 0:00:40]} 33. Rxc3 {[%clk 0:00:20]}  Nxc3 {[%clk 0:00:41]} 34. Bxc6 {[%clk 0:00:19]}  Rc8 {[%clk 0:00:28]} 35. Rd3 {[%clk 0:00:13]}  Ne2+ {[%clk 0:00:28]} 36. Kf1 {[%clk 0:00:13]}  Nxg3+ {[%clk 0:00:29]} 37. Rxg3 {[%clk 0:00:11]}  Rxc6 {[%clk 0:00:29]} 38. Ne4 {[%clk 0:00:08]}  Rc1+ {[%clk 0:00:26]} 39. Ke2 {[%clk 0:00:07]}  Ra1 {[%clk 0:00:26]} 40. Nf6+ {[%clk 0:00:05]}  Kg7 {[%clk 0:00:26]} 41. Nh5+ {[%clk 0:00:04]}  Kh8 {[%clk 0:00:26]} 42. Nf6 {[%clk 0:00:04]}  Bxa3 {[%clk 0:00:24]} 43. Rd3 {[%clk 0:00:03]}  Ra2+ {[%clk 0:00:23]} 44. Kf3 {[%clk 0:00:03]}  Bc5 {[%clk 0:00:22]} 45. Ne4 {[%clk 0:00:03]}  Ba7 {[%clk 0:00:20]} 46. Rd7 {[%clk 0:00:04]}  Kg8 {[%clk 0:00:20]} 47. Kg3 {[%clk 0:00:03]}  Bb8+ {[%clk 0:00:19]} 48. Kg4 {[%clk 0:00:03]}  f5+ {[%clk 0:00:19]} 49. Kh4 {[%clk 0:00:02]}  fxe4 {[%clk 0:00:17]} 50. Rd8+ {[%clk 0:00:02]}  Kf7 {[%clk 0:00:17]} 51. Rxb8 {[%clk 0:00:03]}  Rxf2 {[%clk 0:00:18]} 52. Kg3 {[%clk 0:00:03]}  Rf5 {[%clk 0:00:17]} 53. Rb4 {[%clk 0:00:03]}  Rg5+ {[%clk 0:00:16]} 54. Kf2 {[%clk 0:00:03]}  e3+ {[%clk 0:00:16]} 55. Kxe3 {[%clk 0:00:02]}  Rxg2 {[%clk 0:00:16]} 56. h4 {[%clk 0:00:02]}  h5 {[%clk 0:00:16]} 57. Kf3 {[%clk 0:00:03]}  Rg4 {[%clk 0:00:11]} 58. Rb7+ {[%clk 0:00:02]}  Kf6 {[%clk 0:00:12]} 0-1


[Site "https://www.chess.com"]

[Event "Titled Tuesday Blitz September 27 Late 2022"]
[White "Korchmar, Vasiliy"]
[Black "So, Wesley"]
[WhiteFideId "24131750"]
[BlackFideId "5202213"]
[WhiteElo "2370"]
[BlackElo "2763"]
[Result "0-1"]
[Round "08"]
[TimeControl "180+1"]
[Date "2022.09.27"]
[WhiteClock "0:00:01"]
[BlackClock "0:01:25"]

1. e4 {[%clk 0:03:00]}  c5 {[%clk 0:02:59]} 2. Nf3 {[%clk 0:03:00]}  d6 {[%clk 0:02:58]} 3. d4 {[%clk 0:02:59]}  cxd4 {[%clk 0:02:59]} 4. Nxd4 {[%clk 0:03:00]}  Nf6 {[%clk 0:02:59]} 5. Nc3 {[%clk 0:02:59]}  a6 {[%clk 0:02:59]} 6. f3 {[%clk 0:02:58]}  e5 {[%clk 0:02:57]} 7. Nb3 {[%clk 0:02:58]}  Be6 {[%clk 0:02:57]} 8. Be3 {[%clk 0:02:58]}  h5 {[%clk 0:02:58]} 9. Be2 {[%clk 0:02:46]}  Nc6 {[%clk 0:02:44]} 10. Nd5 {[%clk 0:02:37]}  Bxd5 {[%clk 0:02:35]} 11. exd5 {[%clk 0:02:37]}  Ne7 {[%clk 0:02:31]} 12. c4 {[%clk 0:02:37]}  g6 {[%clk 0:02:30]} 13. O-O {[%clk 0:02:32]}  Nf5 {[%clk 0:02:26]} 14. Bg5 {[%clk 0:02:08]}  Be7 {[%clk 0:02:14]} 15. Bd3 {[%clk 0:01:40]}  Qb6+ {[%clk 0:02:13]} 16. Kh1 {[%clk 0:01:38]}  Ne3 {[%clk 0:02:04]} 17. Bxe3 {[%clk 0:01:06]}  Qxe3 {[%clk 0:02:05]} 18. Re1 {[%clk 0:01:00]}  Qg5 {[%clk 0:02:03]} 19. c5 {[%clk 0:00:49]}  h4 {[%clk 0:01:54]} 20. Na5 {[%clk 0:00:30]}  Nh5 {[%clk 0:01:36]} 21. cxd6 {[%clk 0:00:17]}  Bxd6 {[%clk 0:01:37]} 22. Nxb7 {[%clk 0:00:17]}  Bb8 {[%clk 0:01:35]} 23. Qa4+ {[%clk 0:00:07]}  Kf8 {[%clk 0:01:35]} 24. b4 {[%clk 0:00:05]}  Ng3+ {[%clk 0:01:33]} 25. Kg1 {[%clk 0:00:05]}  Qf4 {[%clk 0:01:30]} 26. Qc2 {[%clk 0:00:01]}  Ba7+ {[%clk 0:01:25]} 0-1


[Site "https://www.chess.com"]

[Event "Titled Tuesday Blitz September 27 Late 2022"]
[White "Leiva, Gianmarco"]
[Black "Abdyzhapar, Asylbek"]
[WhiteFideId "3804399"]
[BlackFideId "13800337"]
[WhiteElo "2323"]
[BlackElo "2323"]
[Result "0-1"]
[Round "08"]
[TimeControl "180+1"]
[Date "2022.09.28"]
[WhiteClock "0:00:10"]
[BlackClock "0:01:28"]

1. e4 {[%clk 0:02:52]}  d6 {[%clk 0:02:59]} 2. d4 {[%clk 0:02:52]}  Nf6 {[%clk 0:03:00]} 3. Nc3 {[%clk 0:02:53]}  g6 {[%clk 0:03:00]} 4. Nf3 {[%clk 0:02:53]}  Bg7 {[%clk 0:03:00]} 5. h3 {[%clk 0:02:53]}  O-O {[%clk 0:03:00]} 6. a4 {[%clk 0:02:50]}  a5 {[%clk 0:02:58]} 7. Bc4 {[%clk 0:02:46]}  c6 {[%clk 0:02:58]} 8. O-O {[%clk 0:02:45]}  Nxe4 {[%clk 0:02:57]} 9. Nxe4 {[%clk 0:02:45]}  d5 {[%clk 0:02:58]} 10. Bd3 {[%clk 0:02:46]}  dxe4 {[%clk 0:02:58]} 11. Bxe4 {[%clk 0:02:47]}  Nd7 {[%clk 0:02:57]} 12. c3 {[%clk 0:02:45]}  Nf6 {[%clk 0:02:55]} 13. Bc2 {[%clk 0:02:45]}  Be6 {[%clk 0:02:55]} 14. Re1 {[%clk 0:02:45]}  h6 {[%clk 0:02:54]} 15. Bxg6 {[%clk 0:02:43]}  Bd5 {[%clk 0:02:52]} 16. Bc2 {[%clk 0:02:43]}  Qc7 {[%clk 0:02:47]} 17. Ne5 {[%clk 0:02:38]}  Rfd8 {[%clk 0:02:46]} 18. Bf4 {[%clk 0:02:26]}  Qb6 {[%clk 0:02:46]} 19. Qd2 {[%clk 0:02:17]}  c5 {[%clk 0:02:46]} 20. Bxh6 {[%clk 0:02:13]}  Ne4 {[%clk 0:02:46]} 21. Bxe4 {[%clk 0:02:06]}  Bxh6 {[%clk 0:02:46]} 22. Qc2 {[%clk 0:02:03]}  cxd4 {[%clk 0:02:44]} 23. Bxd5 {[%clk 0:01:58]}  Rxd5 {[%clk 0:02:43]} 24. Nc4 {[%clk 0:01:53]}  Qc5 {[%clk 0:02:36]} 25. cxd4 {[%clk 0:01:50]}  Rxd4 {[%clk 0:02:36]} 26. b3 {[%clk 0:01:35]}  Rd2 {[%clk 0:02:36]} 27. Qxd2 {[%clk 0:01:33]}  Bxd2 {[%clk 0:02:35]} 28. Nxd2 {[%clk 0:01:34]}  Rd8 {[%clk 0:02:34]} 29. Nc4 {[%clk 0:01:33]}  Rd3 {[%clk 0:02:33]} 30. Rab1 {[%clk 0:01:27]}  f6 {[%clk 0:02:30]} 31. Re6 {[%clk 0:01:10]}  Kf7 {[%clk 0:02:30]} 32. Rb6 {[%clk 0:01:09]}  Rc3 {[%clk 0:02:10]} 33. Rxb7 {[%clk 0:01:06]}  Rc2 {[%clk 0:02:11]} 34. Rf1 {[%clk 0:00:57]}  Kg6 {[%clk 0:02:10]} 35. Rb5 {[%clk 0:00:56]}  Qd4 {[%clk 0:02:08]} 36. Nxa5 {[%clk 0:00:55]}  e5 {[%clk 0:02:07]} 37. Nc4 {[%clk 0:00:55]}  Ra2 {[%clk 0:02:05]} 38. Ne3 {[%clk 0:00:53]}  f5 {[%clk 0:02:04]} 39. Nc4 {[%clk 0:00:45]}  e4 {[%clk 0:02:02]} 40. g3 {[%clk 0:00:41]}  Rc2 {[%clk 0:01:56]} 41. Ne3 {[%clk 0:00:24]}  Rc5 {[%clk 0:01:52]} 42. Rb6+ {[%clk 0:00:22]}  Kg7 {[%clk 0:01:51]} 43. Rd6 {[%clk 0:00:21]}  Qxd6 {[%clk 0:01:49]} 44. b4 {[%clk 0:00:20]}  Re5 {[%clk 0:01:47]} 45. Nc4 {[%clk 0:00:19]}  Qd5 {[%clk 0:01:45]} 46. Nxe5 {[%clk 0:00:20]}  Qxe5 {[%clk 0:01:46]} 47. Rc1 {[%clk 0:00:18]}  e3 {[%clk 0:01:45]} 48. Re1 {[%clk 0:00:17]}  exf2+ {[%clk 0:01:39]} 49. Kxf2 {[%clk 0:00:18]}  Qd4+ {[%clk 0:01:38]} 50. Kf3 {[%clk 0:00:17]}  Qxb4 {[%clk 0:01:37]} 51. Re5 {[%clk 0:00:18]}  Kf6 {[%clk 0:01:36]} 52. Re3 {[%clk 0:00:13]}  Qxa4 {[%clk 0:01:36]} 53. h4 {[%clk 0:00:09]}  Qg4+ {[%clk 0:01:35]} 54. Kf2 {[%clk 0:00:10]}  Qd4 {[%clk 0:01:32]} 55. Ke2 {[%clk 0:00:09]}  Qd5 {[%clk 0:01:30]} 56. Rf3 {[%clk 0:00:10]}  Kg6 {[%clk 0:01:29]} 57. Rf4 {[%clk 0:00:10]}  Qg2+ {[%clk 0:01:28]} 0-1


[Site "https://www.chess.com"]

[Event "Titled Tuesday Blitz September 27 Late 2022"]
[White "Lewtak, Damian"]
[Black "Babazada, Khazar"]
[WhiteFideId "1141724"]
[BlackFideId "13413554"]
[WhiteElo "2329"]
[BlackElo "2409"]
[Result "0-1"]
[Round "08"]
[TimeControl "180+1"]
[Date "2022.09.27"]
[WhiteClock "0:00:16"]
[BlackClock "0:00:06"]

1. e4 {[%clk 0:03:00]}  c5 {[%clk 0:02:58]} 2. Nf3 {[%clk 0:03:01]}  d6 {[%clk 0:02:59]} 3. Bb5+ {[%clk 0:03:00]}  Nd7 {[%clk 0:02:58]} 4. O-O {[%clk 0:03:00]}  a6 {[%clk 0:02:58]} 5. Bd3 {[%clk 0:03:00]}  g6 {[%clk 0:02:59]} 6. a4 {[%clk 0:02:56]}  Bg7 {[%clk 0:02:59]} 7. Re1 {[%clk 0:02:55]}  Ngf6 {[%clk 0:03:00]} 8. c3 {[%clk 0:02:55]}  O-O {[%clk 0:03:00]} 9. h3 {[%clk 0:02:55]}  Rb8 {[%clk 0:03:00]} 10. Bf1 {[%clk 0:02:50]}  b5 {[%clk 0:02:59]} 11. axb5 {[%clk 0:02:50]}  axb5 {[%clk 0:03:00]} 12. d4 {[%clk 0:02:51]}  c4 {[%clk 0:02:47]} 13. b3 {[%clk 0:02:44]}  cxb3 {[%clk 0:02:41]} 14. Qxb3 {[%clk 0:02:44]}  e5 {[%clk 0:02:41]} 15. Ba3 {[%clk 0:02:36]}  b4 {[%clk 0:02:36]} 16. Bxb4 {[%clk 0:02:30]}  exd4 {[%clk 0:02:36]} 17. Nxd4 {[%clk 0:02:29]}  Nc5 {[%clk 0:02:27]} 18. Qc4 {[%clk 0:02:16]}  Bb7 {[%clk 0:02:05]} 19. e5 {[%clk 0:02:05]}  Bd5 {[%clk 0:02:06]} 20. Qe2 {[%clk 0:01:53]}  Re8 {[%clk 0:02:06]} 21. Qd1 {[%clk 0:01:45]}  Nfe4 {[%clk 0:01:30]} 22. f3 {[%clk 0:01:35]}  Ng3 {[%clk 0:00:51]} 23. exd6 {[%clk 0:01:22]}  Rxe1 {[%clk 0:00:34]} 24. Qxe1 {[%clk 0:01:19]}  Rxb4 {[%clk 0:00:35]} 25. cxb4 {[%clk 0:00:54]}  Bxd4+ {[%clk 0:00:35]} 26. Kh2 {[%clk 0:00:51]}  Nxf1+ {[%clk 0:00:32]} 27. Qxf1 {[%clk 0:00:51]}  Bxa1 {[%clk 0:00:33]} 28. bxc5 {[%clk 0:00:51]}  Be5+ {[%clk 0:00:28]} 29. f4 {[%clk 0:00:50]}  Qf6 {[%clk 0:00:20]} 30. g3 {[%clk 0:00:36]}  Bd4 {[%clk 0:00:20]} 31. Qd3 {[%clk 0:00:30]}  Bc6 {[%clk 0:00:18]} 32. Qa6 {[%clk 0:00:22]}  Be4 {[%clk 0:00:06]} 33. Qc8+ {[%clk 0:00:17]}  Kg7 {[%clk 0:00:06]} 34. d7 {[%clk 0:00:17]}  Bg1+ {[%clk 0:00:02]} 35. Kxg1 {[%clk 0:00:17]}  Qd4+ {[%clk 0:00:03]} 36. Kf1 {[%clk 0:00:16]}  Qd3+ {[%clk 0:00:03]} 37. Kf2 {[%clk 0:00:15]}  Qf3+ {[%clk 0:00:03]} 38. Ke1 {[%clk 0:00:15]}  Qxg3+ {[%clk 0:00:03]} 39. Ke2 {[%clk 0:00:14]}  Qf3+ {[%clk 0:00:02]} 40. Ke1 {[%clk 0:00:15]}  Qe3+ {[%clk 0:00:03]} 41. Kd1 {[%clk 0:00:15]}  Qd3+ {[%clk 0:00:03]} 42. Ke1 {[%clk 0:00:16]}  Qxb1+ {[%clk 0:00:04]} 43. Ke2 {[%clk 0:00:16]}  Qd3+ {[%clk 0:00:03]} 44. Kf2 {[%clk 0:00:15]}  Qd2+ {[%clk 0:00:04]} 45. Kf1 {[%clk 0:00:14]}  Bd3+ {[%clk 0:00:04]} 46. Kg1 {[%clk 0:00:15]}  Qe1+ {[%clk 0:00:05]} 47. Kg2 {[%clk 0:00:16]}  Be4+ {[%clk 0:00:05]} 48. Kh2 {[%clk 0:00:16]}  Qf2# {[%clk 0:00:06]} 0-1


[Site "https://www.chess.com"]